bitfinex/quotes_BTCUSD_20260125
["timestamp","ask_amount","ask_price","bid_price","bid_amount"]
[1769367597672,0.01143916,87419.0,87409.0,0.00047141]
[1769367597870,0.01143902,87420.0,87409.0,0.00047141]
[1769367598745,0.00770028,87421.0,87409.0,0.00047141]
[1769367598912,0.01913917,87421.0,87409.0,0.00047141]
[1769367599587,0.00770028,87421.0,87410.0,0.01168456]
[1769367599793,0.00770028,87421.0,87409.0,0.00047141]
[1769367599999,0.01913917,87421.0,87409.0,0.00047141]
[1769367600227,1.13498138,87856.0,87409.0,0.00047141]
[1769367600475,0.0114368,87437.0,87413.0,0.11621002]
[1769367600690,0.11435899,87436.0,87417.0,0.11621002]
[1769367600895,0.11435899,87435.0,87421.0,0.11621002]
[1769367601117,0.01143745,87432.0,87414.0,1.24557287]
[1769367601322,0.13349686,87431.0,87414.0,1.24557287]
[1769367601528,0.01143759,87431.0,87415.0,0.11621002]
[1769367601756,0.01143759,87431.0,87409.0,0.00047141]
[1769367601757,0.01913865,87425.0,87410.0,0.11621002]
[1769367601982,0.0114385,87424.0,87410.0,0.11621002]
[1769367602187,0.01143876,87422.0,87410.0,0.11621002]
[1769367602400,0.01143889,87421.0,87410.0,0.11621002]
[1769367603087,0.0114385,87424.0,87409.0,0.00047141]
[1769367603088,0.01144007,87412.0,87409.0,0.00047141]
[1769367603320,0.01144164,87400.0,87397.0,0.0001642]
[1769367603526,0.0114406,87408.0,87397.0,0.00030547]
[1769367603740,0.05720027,87413.0,87398.0,1.13349763]
[1769367603948,0.01144046,87409.0,87399.0,0.16286359]
[1769367604152,0.01144007,87412.0,87399.0,0.16286359]
[1769367604369,0.00597183,87420.0,87401.0,0.16286359]
[1769367604578,0.01143876,87422.0,87405.0,0.16286359]
[1769367604784,0.01143876,87422.0,87407.0,0.16286359]
[1769367605403,0.01143929,87418.0,87398.0,1.13349763]
[1769367605606,0.10091454,87429.0,87397.0,0.00030547]
[1769367605607,0.01144007,87412.0,87397.0,0.00030547]
[1769367605825,0.12087805,87411.0,87397.0,0.00030547]
[1769367606028,0.13231825,87411.0,87397.0,0.00030547]
[1769367606230,0.12087805,87411.0,87397.0,0.16316906]
[1769367606846,0.16495981,87416.0,87398.0,1.29636122]
[1769367607051,0.01143968,87415.0,87399.0,0.16270563]
[1769367607254,0.16495981,87416.0,87399.0,0.16270563]
[1769367607464,0.01143981,87414.0,87399.0,0.16286359]
[1769367607670,0.12087805,87407.0,87397.0,0.00030547]
[1769367607886,0.01144112,87404.0,87397.0,0.00030547]
[1769367608087,0.01144164,87400.0,87397.0,0.00030547]
[1769367608359,0.01144151,87401.0,87397.0,0.00030547]
[1769367608777,0.01144138,87402.0,87397.0,0.00030547]
[1769367608971,0.01144138,87402.0,87389.0,0.04576]
[1769367608972,0.12057564,87396.0,87389.0,0.04576]
[1769367609120,0.12057564,87396.0,87389.0,0.04587333]
[1769367609320,0.12057564,87396.0,87389.0,0.00011333]
[1769367609937,0.22879279,87416.0,87391.0,0.16286359]
[1769367609938,0.01143968,87415.0,87391.0,0.16286359]
[1769367610280,0.01143968,87415.0,87396.0,1.13349763]
[1769367610494,0.01143968,87415.0,87397.0,0.16270563]
[1769367610703,0.13201532,87415.0,87397.0,0.16270563]
[1769367610907,0.13201532,87415.0,87397.0,0.16254768]
[1769367610908,0.12057564,87413.0,87397.0,0.16254768]
[1769367611428,0.13201558,87413.0,87397.0,0.16254768]
[1769367611640,0.12057564,87413.0,87397.0,0.16254768]
[1769367612046,0.13201558,87413.0,87397.0,0.16254768]
[1769367612247,0.12057564,87413.0,87397.0,0.16254768]
[1769367612819,0.13201558,87413.0,87397.0,0.16254768]
[1769367613132,0.01144033,87410.0,87397.0,0.16254768]
[1769367614505,0.12057564,87413.0,87397.0,0.16254768]
[1769367615123,0.0001642,87422.0,87402.0,0.16286359]
[1769367615288,0.0001642,87422.0,87405.0,1.09587212]
[1769367615493,0.06879038,87431.0,87411.0,0.17887011]
[1769367615494,0.0001642,87431.0,87411.0,0.17887011]
[1769367615743,0.0001642,87431.0,87415.0,0.17887011]
[1769367615952,0.05829909,87429.0,87406.0,0.17887011]
[1769367616158,0.17299349,87424.0,87406.0,0.17887011]
[1769367616362,0.01143798,87428.0,87408.0,0.17887011]
[1769367616562,0.10091454,87426.0,87411.0,1.09587212]
[1769367616801,0.01143785,87429.0,87413.0,1.09587212]
[1769367617035,0.11235226,87430.0,87416.0,0.17887011]
[1769367617226,0.01143785,87429.0,87416.0,0.17887011]
[1769367617673,0.01143798,87428.0,87416.0,0.17887011]
[1769367617857,0.05829909,87431.0,87416.0,0.17887011]
[1769367618108,0.01143772,87430.0,87416.0,0.17887011]
[1769367619360,0.05733898,87433.0,87416.0,0.17887011]
[1769367619585,0.01143798,87428.0,87416.0,0.17887011]
[1769367619797,0.01143863,87423.0,87406.0,0.17887011]
[1769367620035,0.18443147,87428.0,87406.0,1.09598545]
[1769367620232,0.18443147,87428.0,87408.0,0.17887011]
[1769367620233,0.01143824,87426.0,87408.0,0.17887011]
[1769367620452,0.0114385,87424.0,87409.0,0.17887011]
[1769367620895,0.01143863,87423.0,87409.0,0.17887011]
[1769367621298,0.01143876,87422.0,87409.0,0.17887011]
[1769367621734,0.01143863,87423.0,87409.0,0.17887011]
[1769367622194,0.05719056,87428.0,87409.0,0.17887011]
[1769367622402,0.17299349,87428.0,87411.0,0.17887011]
[1769367622606,0.01143772,87430.0,87413.0,0.17887011]
[1769367622816,0.06862662,87430.0,87413.0,0.17887011]
[1769367623009,0.01143785,87429.0,87413.0,0.17887011]
[1769367623518,0.18458281,87433.0,87413.0,0.17887011]
[1769367623744,0.000152,87433.0,87416.0,1.09587212]
[1769367623942,0.000152,87433.0,87417.0,0.17887011]
[1769367624151,0.000152,87433.0,87417.0,0.17871218]
[1769367624782,0.000152,87433.0,87417.0,0.17855426]
[1769367625746,0.000152,87433.0,87417.0,0.17839636]
[1769367625947,0.000152,87433.0,87417.0,0.17823847]
[1769367626161,0.000152,87433.0,87416.0,0.17887011]
[1769367626446,0.000152,87433.0,87418.0,0.17887011]
[1769367627079,0.000152,87433.0,87419.0,1.09587212]
[1769367628639,0.01143745,87432.0,87418.0,0.17887011]
[1769367628968,0.01143772,87430.0,87418.0,0.17887011]
[1769367629118,0.000152,87433.0,87418.0,0.17887011]
[1769367629317,0.000152,87433.0,87420.0,0.17887011]
[1769367631416,0.17576,87441.0,87420.0,0.17887011]
[1769367631417,0.0002211,87447.0,87426.0,0.17887011]
[1769367631710,0.0002211,87447.0,87434.0,0.17887011]
[1769367631865,0.0002211,87447.0,87436.0,0.17887011]
[1769367632052,0.0002211,87447.0,87436.0,0.17771531]
[1769367632492,0.0002211,87447.0,87436.0,1.09587212]
[1769367632696,0.0002211,87447.0,87437.0,0.17887011]
[1769367632944,0.00069259,87447.0,87437.0,0.17887011]
[1769367633551,0.00069259,87447.0,87439.0,0.1921704]
[1769367635734,0.01143419,87457.0,87442.0,1.14934805]
[1769367635936,0.01143432,87456.0,87443.0,0.1921704]
[1769367636329,0.01143445,87455.0,87443.0,0.1921704]
[1769367636879,0.00014139,87457.0,87443.0,0.1921704]
[1769367637700,0.00014139,87457.0,87444.0,0.1921704]
[1769367638138,0.01157558,87457.0,87444.0,0.1921704]
[1769367638333,0.00014139,87457.0,87444.0,0.1921704]
[1769367638564,0.00014139,87457.0,87445.0,1.14934805]
[1769367638773,0.00014139,87457.0,87444.0,0.1921704]
[1769367640848,0.01143432,87456.0,87432.0,0.1921704]
[1769367641034,0.01157558,87457.0,87435.0,1.14934805]
[1769367641234,0.01157558,87457.0,87430.0,0.17576]
[1769367641235,0.00014139,87457.0,87437.0,0.1921704]
[1769367641505,0.00014139,87457.0,87439.0,0.1921704]
[1769367641867,0.00014139,87457.0,87439.0,0.19201255]
[1769367642068,0.00014139,87457.0,87434.0,0.01143719]
[1769367642069,0.00014139,87457.0,87437.0,0.1921704]
[1769367642284,0.00014139,87457.0,87440.0,1.14934805]
[1769367642476,0.00014139,87457.0,87443.0,0.1921704]
[1769367642772,0.00014139,87457.0,87450.0,5.0]
[1769367643355,0.0002211,87460.0,87453.0,1.14934805]
[1769367643556,0.0059722,87464.0,87454.0,1.14934805]
[1769367643782,0.01143183,87475.0,87456.0,1.14934805]
[1769367643981,0.11408208,87472.0,87458.0,1.14934805]
[1769367644184,0.11408208,87472.0,87459.0,0.1921704]
[1769367645323,0.11408208,87472.0,87458.0,1.14934805]
[1769367645324,0.11408208,87472.0,87460.0,0.30013768]
[1769367645476,0.0002,87477.0,87452.0,0.01143484]
[1769367645477,0.0002,87477.0,87462.0,0.1921704]
[1769367645990,0.01143222,87472.0,87450.0,5.0]
[1769367646134,0.01,87462.0,87450.0,5.0]
[1769367646539,0.01143105,87481.0,87456.0,1.14934805]
[1769367646747,0.01143079,87483.0,87463.0,0.1921704]
[1769367646973,0.01163053,87485.0,87462.0,1.14934805]
[1769367647333,0.01143092,87482.0,87466.0,0.1921704]
[1769367647545,0.01163118,87480.0,87466.0,0.1921704]
[1769367647720,0.01143131,87479.0,87466.0,0.1921704]
[1769367648907,0.01143196,87474.0,87466.0,0.19201724]
[1769367649107,0.00014134,87474.0,87466.0,0.19201724]
[1769367650103,0.00014134,87474.0,87459.0,1.14934805]
[1769367650104,0.00014134,87474.0,87460.0,0.1921704]
[1769367650259,0.00014134,87474.0,87461.0,0.1921704]
[1769367651635,0.0114317,87476.0,87461.0,0.1921704]
[1769367651794,0.06859029,87476.0,87461.0,0.19231174]
[1769367652000,0.01143209,87473.0,87461.0,0.19231174]
[1769367652271,0.01143157,87477.0,87461.0,0.19231174]
[1769367652272,0.01143327,87464.0,87461.0,0.00014134]
[1769367652390,0.01143262,87469.0,87461.0,0.00014134]
[1769367652804,0.01143275,87468.0,87461.0,0.00014134]
[1769367653250,0.20147921,87471.0,87461.0,0.00014134]
[1769367653848,0.19004685,87471.0,87461.0,0.00014134]
[1769367654053,0.01143105,87481.0,87471.0,0.01]
[1769367654350,0.01143092,87482.0,87471.0,0.01]
[1769367654546,0.01143092,87482.0,87468.0,0.1921704]
[1769367654769,0.01143079,87483.0,87468.0,0.1921704]
[1769367654987,0.01143105,87481.0,87468.0,0.1921704]
[1769367655180,0.01143092,87482.0,87468.0,0.1921704]
[1769367655743,0.01143105,87481.0,87468.0,0.1921704]
[1769367656162,0.0002,87489.0,87468.0,0.1921704]
[1769367656385,0.0002,87489.0,87474.0,1.14934805]
[1769367656593,0.0002,87489.0,87477.0,0.1921704]
[1769367657241,0.0002,87489.0,87477.0,0.19185476]
[1769367657459,0.0002,87489.0,87477.0,0.19153908]
[1769367657670,0.0002,87489.0,87477.0,0.19138122]
[1769367657873,0.01163,87489.0,87477.0,0.19138122]
[1769367658273,0.0002,87489.0,87477.0,0.19138122]
[1769367658478,0.01142974,87491.0,87478.0,0.1921704]
[1769367658717,0.01142987,87490.0,87478.0,0.1921704]
[1769367658925,0.01142948,87493.0,87478.0,0.1921704]
[1769367659354,0.02343474,87495.0,87479.0,0.1921704]
[1769367659762,0.01142948,87493.0,87479.0,0.1921704]
[1769367659968,0.02343474,87495.0,87480.0,1.14934805]
[1769367660379,0.02343474,87495.0,87470.0,0.29984427]
[1769367660380,0.02343474,87495.0,87483.0,0.1921704]
[1769367660596,0.09169269,87518.0,87486.0,1.14934805]
[1769367660806,0.09169269,87518.0,87471.0,0.01143236]
[1769367660807,0.19004685,87511.0,87493.0,1.14934805]
[1769367661018,0.19004685,87511.0,87486.0,0.1921704]
[1769367661019,0.01142804,87504.0,87486.0,0.1921704]
[1769367661254,10.01142857,87500.0,87486.0,0.1921704]
[1769367661462,0.0114287,87499.0,87486.0,0.1921704]
[1769367661685,0.06857226,87499.0,87488.0,0.1921704]
[1769367661894,0.06857226,87499.0,87470.0,0.29984427]
[1769367661895,0.01143013,87488.0,87476.0,0.17564]
[1769367662110,0.0114304,87486.0,87476.0,0.17578134]
[1769367662316,0.01143026,87487.0,87476.0,0.17578134]
[1769367662317,0.01143013,87488.0,87478.0,1.34151845]
[1769367662518,0.01143105,87481.0,87476.0,0.00014134]
[1769367662923,0.01143079,87483.0,87476.0,0.00014134]
[1769367663123,0.01142961,87492.0,87477.0,0.22275433]
[1769367663330,0.22677642,87499.0,87478.0,0.22275433]
[1769367663544,0.22677642,87499.0,87476.0,0.00014134]
[1769367663545,0.01142804,87504.0,87483.0,1.1391755]
[1769367663775,0.000268,87509.0,87476.0,0.00014134]
[1769367663776,9.69732883,87500.0,87486.0,0.22275433]
[1769367663972,6.18732883,87500.0,87490.0,0.37459467]
[1769367664179,5.90124355,87500.0,87488.0,0.22275433]
[1769367666604,5.90124355,87500.0,87488.0,0.23418446]
[1769367666804,5.90124355,87500.0,87488.0,0.22275433]
[1769367670355,5.90124355,87500.0,87488.0,0.22259651]
[1769367670768,5.90124355,87500.0,87487.0,0.17564]
[1769367670961,5.90124355,87500.0,87488.0,0.22275433]
[1769367671188,5.90124355,87500.0,87488.0,0.22259653]
[1769367671343,5.90124355,87500.0,87488.0,0.22243873]
[1769367673308,1.16666666,87498.0,87486.0,0.1756]
[1769367673711,5.90124355,87500.0,87487.0,0.22275433]
[1769367675345,5.91267212,87500.0,87487.0,0.22275433]
[1769367675584,5.90124355,87500.0,87487.0,0.22275433]
[1769367675913,0.01,87487.0,87476.0,0.00014134]
[1769367676160,0.01143066,87484.0,87476.0,0.00014134]
[1769367676374,0.06858452,87484.0,87476.0,0.00014134]
[1769367676589,0.06858538,87483.0,87467.0,0.26856252]
[1769367676816,0.01143249,87470.0,87453.0,0.26883052]
[1769367677019,0.27397073,87470.0,87456.0,0.22132]
[1769367677189,1.17805269,87465.0,87456.0,0.22132]
[1769367677427,0.0114334,87463.0,87456.0,0.22132]
[1769367677682,1.16661955,87465.0,87456.0,0.22132]
[1769367677904,0.00014134,87470.0,87456.0,0.22132]
[1769367678112,0.0114304,87486.0,87466.0,0.26856252]
[1769367678312,0.01143092,87482.0,87466.0,0.26856252]
[1769367678520,1.16666666,87472.0,87457.0,0.10091454]
[1769367678741,0.01143157,87477.0,87457.0,0.10091454]
[1769367678742,1.16666666,87470.0,87457.0,0.10091454]
[1769367679161,1.16666666,87475.0,87458.0,0.26856252]
[1769367679567,0.01157093,87482.0,87458.0,0.26856252]
[1769367679568,0.01143105,87481.0,87458.0,0.26856252]
[1769367679806,1.17823759,87482.0,87458.0,0.26856252]
[1769367680028,1.17809771,87481.0,87458.0,0.26856252]
[1769367680242,0.01143183,87475.0,87458.0,0.26856252]
[1769367680451,0.0114317,87476.0,87458.0,0.26856252]
[1769367680656,0.01143249,87470.0,87458.0,0.26856252]
[1769367680858,0.01143236,87471.0,87458.0,0.26856252]
[1769367681062,1.17809902,87471.0,87458.0,0.26856252]
[1769367681283,0.22862945,87478.0,87453.0,0.000268]
[1769367681284,1.17809993,87464.0,87453.0,0.000268]
[1769367681494,1.16666666,87460.0,87453.0,0.000268]
[1769367682319,0.01143432,87456.0,87453.0,0.000268]
[1769367682541,1.17092185,87451.0,87450.0,3.24511605]
[1769367682746,1.16118985,87451.0,87450.0,2.59406991]
[1769367682955,1.43501924,87451.0,87450.0,2.59406991]
[1769367683277,1.43501924,87451.0,87450.0,2.51772213]
[1769367683693,1.49219411,87451.0,87450.0,1.70179365]
[1769367683939,1.49219411,87451.0,87450.0,1.65056578]
[1769367684149,1.43601924,87451.0,87450.0,1.05271191]
[1769367684352,1.43601924,87451.0,87450.0,1.00711191]
[1769367684547,1.16218985,87451.0,87450.0,0.9671885]
[1769367684747,0.001,87451.0,87450.0,0.9671885]
[1769367685503,0.44946939,87458.0,87450.0,0.9671885]
[1769367685748,1.06199863,87478.0,87456.0,1.10670236]
[1769367685749,0.01143144,87478.0,87456.0,1.10670236]
[1769367685955,0.01143118,87480.0,87459.0,0.26856252]
[1769367686157,0.1870704,87486.0,87463.0,0.26856252]
[1769367686365,0.27382939,87489.0,87468.0,0.26856252]
[1769367686576,0.01143092,87482.0,87470.0,0.26856252]
[1769367686776,1.16118985,87481.0,87460.0,0.26856252]
[1769367687070,1.43501924,87491.0,87468.0,1.10670236]
[1769367687250,0.01143,87489.0,87471.0,1.37526488]
[1769367687486,1.17261998,87488.0,87471.0,1.37526488]
[1769367687903,1.44644937,87488.0,87471.0,1.37449908]
[1769367688106,0.01143026,87487.0,87471.0,1.37449908]
[1769367688307,1.43501924,87488.0,87471.0,1.37449908]
[1769367688511,1.43501924,87488.0,87472.0,0.26856252]
[1769367688717,1.44644937,87488.0,87472.0,0.26856252]
[1769367688944,1.43501924,87488.0,87472.0,0.26856252]
[1769367689174,0.27382939,87488.0,87473.0,1.10670236]
[1769367689384,0.01143053,87485.0,87472.0,0.26856252]
[1769367690005,1.17262025,87486.0,87472.0,0.26856252]
[1769367690465,0.01143066,87484.0,87472.0,0.26856252]
[1769367690675,0.01143105,87481.0,87472.0,0.26856252]
[1769367690881,0.01143092,87482.0,87472.0,0.26856252]
[1769367690882,0.06858366,87486.0,87472.0,0.26856252]
[1769367691096,1.16118985,87487.0,87472.0,0.26856252]
[1769367691299,1.17262011,87487.0,87472.0,0.26856252]
[1769367691546,0.01143053,87485.0,87472.0,0.26856252]
[1769367691757,0.28525952,87488.0,87472.0,0.26856252]
[1769367691966,0.01143026,87487.0,87472.0,0.26856252]
[1769367692172,0.0114304,87486.0,87472.0,0.26856252]
[1769367692382,1.17262011,87487.0,87472.0,0.26856252]
[1769367692806,1.16118985,87487.0,87472.0,0.26856252]
[1769367693031,0.01143,87489.0,87469.0,1.10670236]
[1769367693032,1.44671672,87493.0,87473.0,1.10670236]
[1769367693260,1.43528724,87493.0,87475.0,1.15389874]
[1769367693465,5.90124355,87500.0,87493.0,0.009732]
[1769367693687,5.90124355,87500.0,87494.0,1.15389874]
[1769367694145,5.90124355,87500.0,87493.0,0.30488833]
[1769367694365,5.90124355,87500.0,87487.0,1.15389874]
[1769367694786,5.90138486,87500.0,87487.0,1.15389874]
[1769367695031,5.90138486,87500.0,87486.0,0.17564]
[1769367695032,5.75610007,87500.0,87488.0,0.10091454]
[1769367695237,3.43190987,87500.0,87489.0,0.30488833]
[1769367695458,3.39701642,87500.0,87489.0,0.30488833]
[1769367697846,3.20035862,87500.0,87489.0,0.30488833]
[1769367699196,3.20035862,87500.0,87490.0,0.30488833]
[1769367699413,0.0114287,87499.0,87469.0,0.01143262]
[1769367699622,3.20035862,87500.0,87484.0,0.10091454]
[1769367699623,1.16666666,87498.0,87484.0,0.10091454]
[1769367700003,1.16666666,87498.0,87485.0,0.30488833]
[1769367700619,1.16666666,87498.0,87485.0,0.20397379]
[1769367700820,1.16666666,87489.0,87472.0,0.10091454]
[1769367701027,1.16666666,87485.0,87472.0,0.10091454]
[1769367701790,0.01142922,87495.0,87473.0,0.30488833]
[1769367701991,1.16666666,87492.0,87473.0,0.30488833]
[1769367702513,0.29205434,87489.0,87472.0,0.10091454]
[1769367702730,1.16666666,87488.0,87472.0,0.10091454]
[1769367703932,0.55029734,87490.0,87460.0,0.04572]
[1769367704134,0.29205434,87477.0,87460.0,0.04572]
[1769367704380,1.15578305,87476.0,87460.0,0.04572]
[1769367705091,1.15578305,87474.0,87460.0,0.04572]
[1769367705494,1.15578305,87473.0,87460.0,0.04572]
[1769367706764,1.15578305,87473.0,87460.0,0.04586134]
[1769367707188,0.01143157,87477.0,87450.0,0.96704716]
[1769367707189,1.15578305,87468.0,87450.0,0.96704716]
[1769367707414,1.15578305,87464.0,87450.0,0.96704716]
[1769367707998,1.16721632,87464.0,87450.0,0.96704716]
[1769367708455,1.16721645,87463.0,87450.0,0.96704716]
[1769367708662,1.15578305,87463.0,87450.0,0.96704716]
[1769367708889,1.15578305,87462.0,87450.0,0.96704716]
[1769367709789,0.29205434,87459.0,87450.0,0.59025202]
[1769367709997,1.15578305,87458.0,87450.0,0.59025202]
[1769367710657,0.29205434,87452.0,87441.0,0.0002963]
[1769367710858,1.15578305,87451.0,87441.0,0.00043769]
[1769367711485,1.15578305,87449.0,87441.0,0.00043769]
[1769367712341,0.06860181,87462.0,87441.0,0.00043769]
[1769367712342,0.01143275,87468.0,87449.0,0.01]
[1769367712557,0.29205434,87466.0,87449.0,0.01]
[1769367712777,1.15578305,87465.0,87449.0,0.01]
[1769367712974,1.33142305,87465.0,87449.0,0.31488833]
[1769367713941,0.29205434,87461.0,87449.0,0.01]
[1769367714170,1.44783739,87459.0,87442.0,0.10091454]
[1769367714429,1.15578305,87458.0,87442.0,0.10091454]
[1769367714985,1.15578305,87458.0,87442.0,0.40580287]
[1769367715182,1.15578305,87458.0,87443.0,0.30488833]
[1769367716680,1.15578305,87463.0,87443.0,1.11693469]
[1769367716928,1.15578305,87463.0,87444.0,0.30488833]
[1769367717310,1.15578305,87462.0,87444.0,0.30488833]
[1769367717918,1.15578305,87461.0,87444.0,0.30488833]
[1769367718513,0.29205434,87455.0,87441.0,0.00043769]
[1769367718731,0.29205434,87454.0,87441.0,0.00043769]
[1769367718937,1.15578305,87453.0,87441.0,0.00043769]
[1769367719581,0.17564,87457.0,87442.0,0.30488833]
[1769367719786,0.17564,87457.0,87441.0,0.00043769]
[1769367720001,1.33142305,87456.0,87441.0,0.00043769]
[1769367720831,0.01143458,87454.0,87441.0,0.00043769]
[1769367721034,0.01143471,87453.0,87441.0,0.00043769]
[1769367721244,1.15578305,87451.0,87441.0,0.00043769]
[1769367721459,1.15578305,87450.0,87441.0,0.00043769]
[1769367722106,0.96544934,87446.0,87431.0,0.30488833]
[1769367722338,0.96559057,87446.0,87431.0,0.30488833]
[1769367722945,0.96559057,87446.0,87423.0,0.0002963]
[1769367722946,0.01143654,87439.0,87423.0,0.0002963]
[1769367723144,1.0879197,87437.0,87423.0,0.0002963]
[1769367723716,1.37523055,87445.0,87437.0,0.01]
[1769367723893,1.37523055,87445.0,87424.0,1.29503961]
[1769367723894,1.0879197,87439.0,87424.0,0.29222185]
[1769367724502,0.17568,87442.0,87423.0,0.0002963]
[1769367724714,0.28731085,87437.0,87423.0,0.0002963]
[1769367724912,1.0879197,87436.0,87423.0,0.0002963]
[1769367725748,0.01143667,87438.0,87423.0,0.0002963]
[1769367725749,1.0879197,87434.0,87423.0,0.0002963]
[1769367726086,1.0879197,87433.0,87423.0,0.0002963]
[1769367726368,1.37537178,87446.0,87425.0,1.01281776]
[1769367726590,0.01143575,87445.0,87425.0,1.30503961]
[1769367726707,1.2635997,87442.0,87425.0,1.30503961]
[1769367727131,1.2635997,87442.0,87425.0,0.29222185]
[1769367727132,0.01143628,87441.0,87425.0,0.29222185]
[1769367727326,1.0879197,87439.0,87423.0,0.0002963]
[1769367727798,1.0879197,87439.0,87423.0,0.29251815]
[1769367728024,0.00014123,87446.0,87423.0,0.0002963]
[1769367728260,0.00014123,87446.0,87435.0,0.29222185]
[1769367728479,0.00014123,87446.0,87437.0,0.29222185]
[1769367728925,0.97707591,87451.0,87437.0,0.29222185]
[1769367729137,1.0879197,87444.0,87437.0,0.00047149]
[1769367729344,0.00952851,87437.0,87423.0,0.0002963]
[1769367729617,0.00999963,87437.0,87423.0,0.0002963]
[1769367729849,0.00047112,87437.0,87423.0,0.29251815]
[1769367730500,0.00047112,87437.0,87423.0,0.0002963]
[1769367730501,1.0879197,87436.0,87423.0,0.0002963]
[1769367734176,1.0879197,87435.0,87423.0,0.0002963]
[1769367735612,0.25833464,87432.0,87423.0,0.0002963]
[1769367735807,1.10167742,87431.0,87423.0,0.0002963]
[1769367736009,0.06909213,87437.0,87407.0,0.0631057]
[1769367736010,1.10167742,87422.0,87407.0,0.0631057]
[1769367736230,0.01143889,87421.0,87407.0,0.0631057]
[1769367736443,1.36001206,87420.0,87406.0,0.0002963]
[1769367736658,0.17568,87423.0,87406.0,0.0002963]
[1769367736659,0.01143968,87415.0,87406.0,0.0002963]
[1769367736868,1.10167742,87415.0,87406.0,0.0002963]
[1769367737309,1.10167742,87415.0,87397.0,0.24949801]
[1769367737310,1.36001206,87415.0,87397.0,0.24984741]
[1769367738123,1.10167742,87413.0,87397.0,0.0003494]
[1769367738354,0.25833464,87410.0,87397.0,0.0003494]
[1769367738770,1.10167742,87411.0,87397.0,0.0003494]
[1769367739608,1.10167742,87411.0,87400.0,0.00054123]
[1769367740048,1.10167742,87407.0,87400.0,0.00054123]
[1769367740248,1.36001206,87407.0,87400.0,0.00054123]
[1769367740808,1.36001206,87407.0,87393.0,0.17568]
[1769367740809,1.10167742,87399.0,87393.0,0.17568]
[1769367741043,1.10167742,87399.0,87393.0,0.00011333]
[1769367742413,1.10167742,87401.0,87393.0,0.00011333]
[1769367742822,1.36001206,87401.0,87393.0,0.00011333]
[1769367743030,1.10167742,87401.0,87393.0,0.00011333]
[1769367743236,1.10167742,87399.0,87393.0,0.00011333]
[1769367743438,1.36001206,87399.0,87393.0,0.00011333]
[1769367744068,1.10167742,87387.0,87381.0,0.02343474]
[1769367744278,0.00941518,87388.0,87381.0,0.02350477]
[1769367744486,0.17572,87394.0,87381.0,0.02350477]
[1769367745117,1.27739742,87394.0,87381.0,0.02350477]
[1769367745320,0.17572,87401.0,87383.0,0.24949801]
[1769367745530,0.17572,87402.0,87385.0,1.08358392]
[1769367745736,1.27739742,87403.0,87386.0,0.24949801]
[1769367746328,1.10167742,87402.0,87386.0,0.24949801]
[1769367747391,0.17572,87403.0,87387.0,1.08358392]
[1769367747600,0.17572,87403.0,87381.0,0.02350477]
[1769367747601,0.01143876,87422.0,87392.0,0.2609407]
[1769367747812,1.10167742,87420.0,87403.0,0.00047148]
[1769367748019,1.10167742,87420.0,87403.0,0.24949801]
[1769367748643,0.25833464,87419.0,87393.0,0.01144256]
[1769367748854,1.36001206,87417.0,87398.0,0.24949801]
[1769367749057,1.36001206,87417.0,87399.0,0.24949801]
[1769367749233,1.12685118,87417.0,87400.0,0.24949801]
[1769367749434,1.10167742,87417.0,87400.0,0.24949801]
[1769367754292,0.01143968,87415.0,87400.0,0.24949801]
[1769367754493,1.16523555,87414.0,87400.0,0.24949801]
[1769367756498,1.42357019,87419.0,87400.0,0.24949801]
[1769367757073,1.43500935,87419.0,87400.0,0.24949801]
[1769367757230,1.42357019,87419.0,87400.0,0.24949801]
[1769367757436,1.41077026,87419.0,87400.0,0.24949801]
[1769367757637,1.16523555,87416.0,87400.0,0.24949801]
[1769367758876,1.3993311,87416.0,87394.0,0.22505102]
[1769367759278,1.3993311,87416.0,87395.0,0.22505102]
[1769367759678,1.3993311,87416.0,87396.0,0.22505102]
[1769367760154,1.16523555,87415.0,87396.0,0.22505102]
[1769367760366,0.23409555,87416.0,87396.0,0.22505102]
[1769367760367,0.01143981,87414.0,87396.0,0.22505102]
[1769367760521,0.0114402,87411.0,87396.0,0.22505102]
[1769367760733,0.01144046,87409.0,87396.0,0.22505102]
[1769367760936,1.16523555,87408.0,87389.0,0.22505102]
[1769367761143,0.23409555,87407.0,87389.0,0.22505102]
[1769367761360,1.16523555,87404.0,87389.0,0.22505102]
[1769367767974,0.23409555,87406.0,87383.0,0.22505102]
[1769367767975,1.16523555,87402.0,87383.0,0.22505102]
[1769367768176,1.34099555,87403.0,87384.0,1.0821727]
[1769367768475,1.3993311,87410.0,87389.0,1.0821727]
[1769367768654,1.3993311,87410.0,87390.0,0.22505102]
[1769367768655,1.45434634,87409.0,87390.0,0.22505102]
[1769367768853,0.17576,87408.0,87388.0,0.23649423]
[1769367769084,0.17576,87408.0,87390.0,0.22505102]
[1769367769624,1.34099555,87408.0,87390.0,0.22505102]
[1769367770150,1.16523555,87408.0,87390.0,0.23649397]
[1769367770347,1.16523555,87408.0,87392.0,1.0821727]
[1769367770551,1.34099555,87408.0,87393.0,0.22505102]
[1769367771802,1.3993311,87406.0,87383.0,0.22505102]
[1769367771977,1.16523555,87406.0,87383.0,0.22505102]
[1769367772176,1.16523555,87404.0,87383.0,0.22505102]
[1769367772398,1.16523555,87404.0,87383.0,1.0821727]
[1769367772689,1.16523555,87404.0,87384.0,1.09361644]
[1769367772907,1.16523555,87404.0,87386.0,0.22505102]
[1769367773132,1.16523555,87404.0,87386.0,0.2364945]
[1769367773372,1.16523555,87404.0,87386.0,0.22505102]
[1769367774399,1.16523555,87385.0,87377.0,0.0003282]
[1769367774604,1.16523555,87385.0,87377.0,0.00014154]
[1769367774605,1.3993311,87385.0,87377.0,0.00014154]
[1769367775676,1.3993311,87385.0,87366.0,0.22505102]
[1769367776630,1.16523555,87385.0,87366.0,0.22505102]
[1769367776849,1.16523555,87383.0,87366.0,0.22505102]
[1769367777050,1.16537683,87383.0,87366.0,0.22505102]
[1769367779960,1.16523555,87382.0,87366.0,0.22505102]
[1769367782475,0.01144269,87392.0,87362.0,0.06907959]
[1769367782476,0.23409555,87402.0,87382.0,0.00047148]
[1769367782687,0.1758,87399.0,87384.0,0.22505102]
[1769367782900,1.34103555,87399.0,87384.0,0.22505102]
[1769367783110,1.34103555,87399.0,87383.0,1.0821727]
[1769367783111,0.0114423,87395.0,87382.0,0.00047148]
[1769367783311,0.0114423,87395.0,87366.0,0.0114461]
[1769367783312,1.0670711,87394.0,87374.0,0.20259753]
[1769367783513,1.0670711,87394.0,87374.0,0.20273881]
[1769367783723,0.01144361,87385.0,87374.0,0.00014128]
[1769367783926,0.05721746,87386.0,87374.0,0.00014128]
[1769367783927,1.27457367,87384.0,87374.0,0.00014128]
[1769367784152,1.0670711,87383.0,87374.0,0.00014128]
[1769367784360,1.0670711,87381.0,87374.0,0.00014128]
[1769367784980,0.00014128,87374.0,87362.0,0.0004]
[1769367785183,1.0670711,87376.0,87362.0,0.20299753]
[1769367786177,0.1758,87381.0,87364.0,0.20259753]
[1769367786380,0.1758,87381.0,87362.0,0.0004]